bitfinex-derivatives/quotes_ETHF0:USTF0_20250911
["timestamp","ask_amount","ask_price","bid_price","bid_amount"]
[1757627874257,1.16926829,4431.8,4431.7,3.4348]
[1757627875759,1.16926829,4431.8,4431.7,3.2078]
[1757627875959,1.16926829,4431.8,4431.7,3.4348]
[1757627883455,1.16926829,4431.8,4431.7,3.2078]
[1757627883662,1.36336829,4431.8,4431.7,3.4348]
[1757627888965,1.36336829,4431.8,4431.7,3.2078]
[1757627889165,1.36336829,4431.8,4431.7,3.4348]
[1757627894568,1.36336829,4431.8,4431.7,3.2078]
[1757627894773,1.36336829,4431.8,4431.7,3.4348]
[1757627897873,0.64716829,4431.8,4431.7,3.66044]
[1757627898071,0.303,4432.0,4431.7,3.66044]
[1757627898271,0.64716829,4431.9,4431.7,3.66044]
[1757627898767,0.64716829,4431.9,4431.7,3.4348]
[1757627903782,0.64716829,4431.8,4431.7,3.4348]
[1757627904076,0.303,4431.9,4431.7,3.4348]
[1757627907288,0.1222,4432.5,4431.7,3.4348]
[1757627907480,0.2981,4432.3,4431.7,3.4348]
[1757627907686,0.2981,4432.1,4431.7,3.4348]
[1757627907895,0.2981,4431.9,4431.7,3.4348]
[1757627909387,0.123,4432.0,4431.7,3.4348]
[1757627909589,0.2981,4431.8,4431.7,3.4348]
[1757627910384,0.4211,4432.0,4431.7,8.06648]
[1757627910590,0.1222,4432.5,4431.8,0.22564]
[1757627910790,0.1222,4432.5,4432.4,3.2078]
[1757627910991,0.1222,4432.5,4432.4,3.4348]
[1757627911983,0.5149,4432.5,4432.4,3.4348]
[1757627912481,0.813,4432.5,4432.4,3.4348]
[1757627933510,0.4203,4432.5,4432.4,3.4348]
[1757627936417,1.06198643,4432.5,4432.4,3.4348]
[1757627937418,1.26028643,4432.5,4432.4,3.4348]
[1757627937918,1.45468643,4432.5,4432.4,3.4348]
[1757627940424,1.45468643,4432.5,4432.4,3.2078]
[1757627940624,0.1239,4432.0,4431.9,3.2078]
[1757627940923,1.51258643,4432.0,4431.9,3.4338]
[1757627944428,0.8709,4432.0,4431.9,3.4338]
[1757627950031,0.8709,4432.0,4431.9,3.2078]
[1757627950529,0.1239,4430.5,4430.3,3.2078]
[1757627950726,0.747,4430.4,4430.3,3.2078]
[1757627950927,0.747,4430.4,4429.7,3.2078]
[1757627951231,0.747,4429.9,4429.8,0.226]
[1757627951533,0.5331,4429.9,4429.8,0.226]
[1757627955031,0.747,4429.9,4429.7,3.2078]
[1757627955231,0.747,4429.3,4429.2,3.2078]
[1757627955428,0.747,4429.3,4429.2,3.4338]
[1757627957733,0.4275,4429.3,4428.7,3.2078]
[1757627957938,0.3195,4428.9,4428.8,0.227]
[1757627958134,0.5331,4428.9,4428.8,0.227]
[1757627961440,0.747,4428.9,4428.8,0.227]
[1757627970337,0.3195,4428.9,4428.8,0.227]
[1757627970543,0.3195,4428.9,4428.8,4.45279]
[1757627971842,0.3195,4428.9,4428.8,4.227]
[1757627972048,0.3195,4428.9,4428.8,4.40746959]
[1757627977556,0.3195,4428.9,4428.8,4.227]
[1757627978450,0.2955,4429.4,4429.1,0.40629]
[1757627978650,0.1239,4429.5,4429.2,3.84108]
[1757627979151,0.2955,4429.4,4429.2,3.84108]
[1757627979455,3.2078,4430.1,4429.4,0.40626]
[1757627979657,0.2955,4429.9,4429.5,0.227]
[1757627980955,0.5105,4429.9,4429.5,0.227]
[1757627982255,0.2955,4430.2,4429.7,3.2078]
[1757627982556,0.2955,4430.2,4430.0,0.4062]
[1757627982755,0.2955,4430.2,4430.1,0.227]
[1757627983250,0.2955,4430.4,4430.2,0.40618]
[1757627983451,0.2955,4430.4,4430.3,3.2078]
[1757627985657,0.2955,4430.4,4430.3,3.4348]
[1757627986058,0.3373,4431.5,4431.4,0.3586]
[1757627986257,0.3373,4431.5,4431.4,0.5856]
[1757627986456,0.3373,4431.5,4431.4,3.7934]
[1757627988258,0.6328,4431.5,4431.4,3.7934]
[1757627992862,0.4178,4431.5,4431.4,3.9064]
[1757627993059,0.3373,4432.0,4431.9,0.3616]
[1757627993363,0.5498,4432.0,4431.9,0.5886]
[1757627993754,0.8453,4432.0,4431.9,0.5886]
[1757627993956,0.8453,4431.5,4431.4,3.3886]
[1757627994255,0.8453,4431.5,4431.4,3.6156]
[1757627994959,0.8453,4431.5,4430.8,3.2078]
[1757627995157,0.723,4430.9,4430.8,3.2078]
[1757627995351,0.723,4430.9,4430.8,3.4348]
[1757627999964,0.723,4430.9,4430.8,3.6136]
[1757628001263,0.723,4430.9,4430.8,3.7924]
[1757628001955,0.2955,4430.9,4430.8,3.9044]
[1757628002158,0.3121,4431.4,4431.3,0.3576]
[1757628002358,0.3121,4431.4,4431.3,3.9044]
[1757628002767,0.3272,4432.0,4431.9,0.3576]
[1757628003069,0.3272,4432.0,4431.3,3.4348]
[1757628003070,0.1239,4431.5,4431.4,0.3576]
[1757628003261,0.6409,4431.5,4431.4,0.6966]
[1757628003455,0.3121,4431.9,4431.8,0.3576]
[1757628003657,0.3121,4431.9,4431.8,0.6966]
[1757628004661,3.2078,4432.6,4431.8,0.6966]
[1757628004864,0.517,4432.4,4432.3,0.3576]
[1757628005167,0.7197,4432.4,4432.3,0.5846]
[1757628011173,0.517,4432.4,4432.3,0.5846]
[1757628011374,0.517,4432.4,4432.3,0.6966]
[1757628011569,0.517,4432.4,4432.3,0.5846]
[1757628013079,0.7197,4432.4,4432.3,0.5846]
[1757628016269,0.7197,4432.4,4432.3,0.4058]
[1757628017372,0.8436,4432.0,4431.9,3.2078]
[1757628017566,0.6387,4431.0,4430.9,0.1785]
[1757628017772,0.6387,4431.0,4430.9,0.4055]
[1757628017773,0.8436,4431.0,4430.9,0.4055]
[1757628022679,0.3121,4430.9,4430.8,35.7118]
[1757628023381,0.3121,4430.9,4430.8,35.9388]
[1757628023973,3.2078,4432.7,4431.4,0.3043]
[1757628024175,0.4076,4432.5,4432.4,0.7053]
[1757628024375,0.4076,4432.5,4432.4,0.9323]
[1757628025876,0.7197,4432.5,4432.4,0.9323]
[1757628028082,0.517,4432.5,4432.4,0.9323]
[1757628028281,0.7204,4432.5,4432.4,0.9323]
[1757628030282,3.2078,4433.3,4432.8,0.4084]
[1757628030481,3.2078,4433.3,4432.5,0.1289]
[1757628030482,0.4994,4433.2,4433.1,0.7304]
[1757628031379,0.2053,4433.3,4433.2,0.322]
[1757628031585,0.4994,4433.3,4433.2,0.9574]
[1757628034297,0.7028,4433.3,4433.2,0.9574]
[1757628042995,3.9106,4433.3,4433.2,0.2069]
[1757628043193,3.9106,4433.3,4433.2,0.227]
[1757628043692,3.9106,4433.3,4433.2,0.4339]
[1757628043889,3.9106,4433.3,4432.8,0.227]
[1757628043890,0.1211,4433.0,4432.8,0.227]
[1757628044097,0.7028,4432.9,4432.8,0.227]
[1757628044599,0.7028,4432.9,4432.4,0.322]
[1757628044600,0.2941,4432.8,4432.7,0.227]
[1757628044785,0.7028,4432.8,4432.7,0.227]
[1757628044991,3.9106,4432.8,4432.7,0.227]
[1757628045386,3.9106,4432.8,4432.3,0.322]
[1757628045591,0.1211,4432.5,4432.4,0.227]
[1757628045792,0.5298,4432.5,4432.4,0.227]
[1757628046097,0.8239,4432.5,4432.4,0.7559]
[1757628046592,0.8239,4432.5,4431.8,3.2078]
[1757628046993,0.7028,4432.4,4432.3,0.2069]
[1757628047190,0.7028,4432.4,4432.3,0.5289]
[1757628047897,3.2078,4432.8,4431.9,0.227]
[1757628048198,0.4994,4432.1,4432.0,0.7304]
[1757628048490,0.2941,4432.4,4432.3,0.4084]
[1757628048698,0.4994,4432.4,4432.3,0.7304]
[1757628049098,0.7028,4432.4,4432.3,0.7304]
[1757628056302,0.7028,4432.4,4432.3,0.2069]
[1757628057003,0.7028,4432.4,4432.3,0.5289]
[1757628060299,0.4994,4432.4,4432.3,0.7304]
[1757628063108,3.2078,4432.8,4432.4,0.2948]
[1757628063308,0.5048,4432.5,4432.4,0.9236]
[1757628064310,0.3103,4433.3,4432.8,0.2948]
[1757628064507,0.38723013,4433.3,4433.2,0.6966]
[1757628064708,0.58153013,4433.3,4433.2,0.6966]
[1757628068819,0.5126,4433.0,4432.7,0.2948]
[1757628069009,0.8229,4432.5,4432.4,0.4959]
[1757628069310,0.8229,4432.5,4432.4,0.7229]
[1757628071507,0.5048,4432.5,4432.4,0.9236]
[1757628072114,0.6991,4432.5,4432.4,0.9236]
[1757628075122,0.8229,4432.5,4432.4,0.9236]
[1757628075313,0.6991,4432.5,4432.4,0.9236]
[1757628077414,0.6991,4432.5,4432.4,0.6966]
[1757628077714,0.8229,4432.5,4432.4,0.4281]
[1757628078713,0.8229,4432.5,4432.4,0.7229]
[1757628079119,0.8229,4432.5,4432.4,0.4959]
[1757628082223,0.8229,4432.5,4432.3,0.227]
[1757628083018,0.8229,4432.5,4432.3,0.5218]
[1757628083227,0.6991,4432.4,4432.3,0.7229]
[1757628086119,0.3103,4432.8,4432.3,0.6288]
[1757628086321,0.6991,4432.8,4432.7,0.6966]
[1757628087124,3.2078,4432.9,4432.7,0.6966]
[1757628087329,0.3103,4433.5,4432.8,0.9236]
[1757628087529,0.7281,4433.5,4433.4,0.4111]
[1757628087723,1.49317028,4433.5,4433.4,0.1853]
[1757628088025,1.49317028,4433.5,4433.4,0.3827]
[1757628089325,0.8537,4433.5,4433.4,0.3827]
[1757628093322,1.18253017,4433.5,4432.8,0.5414]
[1757628093522,0.7356,4432.9,4432.8,0.7388]
[1757628093722,0.7356,4432.9,4432.8,0.9525]
[1757628098930,0.3178,4433.4,4432.8,0.6381]
[1757628099226,3.2078,4433.6,4433.3,0.7255]
[1757628099429,0.3178,4433.5,4433.4,0.9525]
[1757628100328,0.5239,4433.5,4433.4,0.9525]
[1757628103029,0.3178,4433.5,4433.4,0.9525]
[1757628103231,3.4139,4434.1,4434.0,0.8419]
[1757628103424,4.05248176,4434.1,4434.0,0.8419]
[1757628104037,4.26418176,4434.1,4434.0,0.8419]
[1757628104332,4.26418176,4434.1,4432.9,3.2078]
[1757628104333,0.4178,4432.9,4432.6,3.5222]
[1757628104541,0.4178,4432.9,4432.3,0.3144]
[1757628104735,0.4178,4432.4,4432.3,0.3144]
[1757628105032,0.1256,4432.0,4431.9,0.3144]
[1757628105332,0.8612,4432.0,4431.7,0.3144]
[1757628105536,0.5434,4432.0,4431.4,0.3144]
[1757628105839,0.5434,4432.0,4431.3,3.4358]
[1757628105840,0.7356,4431.4,4431.3,4.1613]
[1757628106435,0.7356,4431.4,4431.3,0.9535]
[1757628106831,0.7356,4431.4,4430.8,3.2078]
[1757628107135,0.7356,4431.4,4430.6,0.18429772]
[1757628107136,0.2253,4431.3,4430.7,0.3144]
[1757628107336,0.5239,4430.8,4430.7,0.7255]
[1757628107732,0.2061,4430.8,4430.7,0.7255]
[1757628107937,0.5239,4431.2,4431.1,0.7255]
[1757628108133,0.7356,4431.2,4431.1,0.7255]
[1757628109337,0.7356,4431.2,4430.6,0.3144]
[1757628110438,0.1256,4431.0,4429.9,3.2078]
[1757628110744,0.7356,4430.0,4429.9,3.9333]
[1757628111738,0.7356,4430.0,4429.9,3.7196]
[1757628111939,0.8612,4430.0,4429.9,3.2078]
[1757628112944,0.8612,4430.0,4429.6,0.3144]
[1757628113144,0.8612,4430.0,4429.5,0.1164]
[1757628113340,0.8612,4430.0,4429.6,0.3144]
[1757628113534,0.8612,4430.0,4429.5,0.1164]
[1757628114138,0.8612,4430.0,4429.6,0.3144]
[1757628114740,0.8612,4430.0,4429.5,0.1164]
[1757628115445,0.8612,4430.0,4429.6,0.3144]
[1757628115645,0.3178,4429.9,4429.3,0.5424]
[1757628115846,0.7356,4429.4,4429.3,0.7398]
[1757628118845,0.5193,4430.2,4430.1,0.7222]
[1757628119248,0.2058,4430.2,4430.1,0.7222]
[1757628121160,3.2078,4430.7,4430.2,0.3135]
[1757628121355,3.4136,4430.7,4430.6,0.7222]
[1757628121855,3.7271,4430.7,4430.6,0.7222]
[1757628122657,3.9214,4430.7,4430.6,0.7222]
[1757628123662,4.1467,4430.7,4430.6,0.7222]
[1757628125960,4.1467,4430.7,4430.0,0.3135]
[1757628126164,0.7136,4429.3,4429.2,3.2078]
[1757628126363,0.3135,4429.2,4428.7,0.3135]
[1757628126662,0.7136,4428.4,4428.3,0.7222]
[1757628126863,0.2058,4428.4,4428.3,0.7222]
[1757628127065,1.21500544,4431.4,4428.3,0.7222]
[1757628127066,0.7136,4429.4,4429.3,0.7222]
[1757628127362,0.7816,4429.4,4429.3,0.7222]
[1757628127565,3.9894,4429.4,4429.3,0.7222]
[1757628129467,3.9894,4429.4,4429.0,0.3135]
[1757628129769,3.9894,4429.4,4428.5,0.1239]
[1757628129972,3.9894,4429.4,4428.6,0.3135]
[1757628130260,3.2078,4429.4,4429.3,0.7222]
[1757628130464,3.7493,4430.1,4429.5,0.1239]
[1757628130666,4.1494,4430.1,4430.0,0.5123]
[1757628131660,0.4001,4429.2,4429.1,0.7222]
[1757628131861,0.4001,4428.9,4428.8,3.2078]
[1757628132061,0.1191,4429.0,4428.0,0.1239]
[1757628132062,0.7136,4428.6,4428.5,0.8461]
[1757628133962,0.4001,4428.6,4428.5,0.8461]
[1757628134164,0.3135,4428.9,4428.6,0.3135]
[1757628134469,0.5193,4428.9,4428.8,0.7222]
[1757628134667,3.9214,4429.6,4429.5,0.7222]
[1757628134872,3.9214,4429.6,4429.5,0.8461]
[1757628135669,3.9214,4429.6,4429.5,0.7222]
[1757628136269,3.9214,4429.6,4429.5,0.8461]
[1757628137167,3.5213,4430.1,4429.6,0.3135]
[1757628137372,3.5213,4430.1,4429.9,0.7222]
[1757628137373,1.35174835,4430.0,4429.9,0.7222]
[1757628138665,1.47084835,4430.0,4429.6,0.3135]
[1757628138868,0.7136,4429.4,4429.3,0.7403]
[1757628139062,0.7136,4429.4,4429.3,0.5123]
[1757628141070,0.7136,4429.4,4429.3,0.7222]
[1757628142271,0.3135,4429.8,4429.3,0.4087]
[1757628142476,0.63934518,4429.7,4429.6,0.7222]
[1757628142974,0.228,4430.4,4429.6,0.7222]
[1757628142975,3.4136,4430.6,4430.5,0.8461]
[1757628143163,3.4136,4430.6,4429.6,7.66154999]
[1757628143164,0.3135,4430.1,4429.7,0.3135]
[1757628143367,0.7136,4429.8,4429.7,0.5123]
[1757628143568,1.35284184,4429.8,4429.5,0.228]
[1757628143768,0.4001,4429.6,4429.5,0.228]
[1757628143969,0.7136,4429.6,4429.5,0.228]
[1757628144269,0.7136,4429.6,4429.5,0.4268]
[1757628144473,1.35289225,4429.6,4429.5,0.4268]
[1757628145074,0.7136,4429.6,4429.5,0.9502]
[1757628145273,0.7136,4429.6,4429.5,1.0741]
[1757628145575,0.2058,4429.6,4429.5,1.0741]
[1757628147574,3.2078,4430.6,4430.1,0.3203]
[1757628147779,0.63922629,4430.5,4430.4,0.7142]
[1757628147979,0.84902629,4430.5,4430.4,0.7142]
[1757628149577,1.07432629,4430.5,4430.4,0.7142]
[1757628151471,1.28802629,4430.5,4430.4,0.7142]
[1757628151675,0.3197,4430.4,4430.1,0.3203]
[1757628151974,0.3197,4430.1,4429.6,3.2078]
[1757628152179,0.7432,4429.3,4429.2,0.5183]
[1757628152779,0.7432,4429.3,4429.2,0.7142]
[1757628153481,0.4235,4429.3,4429.2,0.7142]
[1757628153678,3.7373,4430.1,4430.0,0.84]
[1757628153878,4.37667298,4430.1,4430.0,0.84]
[1757628155075,3.7373,4430.1,4430.0,0.84]
[1757628155274,0.3454,4430.5,4430.0,0.84]
[1757628155275,0.545,4430.5,4430.0,0.84]
[1757628155477,0.84937438,4430.4,4430.3,0.7142]
[1757628155777,1.38277438,4430.4,4430.3,0.7142]
[1757628157178,0.7432,4430.4,4430.3,0.7142]
[1757628162884,0.4235,4430.4,4429.7,0.3203]
[1757628163086,0.7432,4429.8,4429.7,0.7142]
[1757628163386,0.7432,4429.8,4429.1,0.3203]
[1757628166887,0.2098,4429.2,4429.1,0.7142]
[1757628168288,0.3197,4429.5,4429.1,0.3939]
[1757628168493,0.2254,4429.7,4429.6,0.7142]
[1757628169482,0.4352,4429.7,4429.6,0.7142]
[1757628173593,0.9686,4429.7,4429.6,0.7142]
[1757628173892,0.9686,4429.7,4429.6,0.5183]
[1757628175086,0.7432,4429.5,4429.4,0.7463]
[1757628175599,0.8633,4429.5,4429.4,0.7463]
[1757628176096,0.7432,4429.5,4429.4,0.7463]
[1757628176492,0.7432,4429.5,4429.4,0.9422]
[1757628176692,0.4235,4429.5,4429.4,0.9422]
[1757628180602,0.7152,4429.5,4429.4,0.9422]
[1757628180805,0.4235,4429.5,4429.4,0.9422]
[1757628181001,0.7152,4429.5,4429.4,0.7142]
[1757628181802,0.2254,4429.7,4429.4,0.7142]
[1757628182002,0.2254,4429.7,4429.6,0.7112]
[1757628182210,3.7036,4430.6,4430.5,0.8291]
[1757628182999,3.9158,4430.6,4430.5,0.8291]
[1757628183199,3.9158,4430.6,4430.5,0.7112]
[1757628185103,32.513,4431.7,4430.5,0.5254]
[1757628185104,0.2917,4431.0,4430.5,0.5254]
[1757628185306,0.708,4431.4,4431.3,0.7112]
[1757628185507,0.708,4431.4,4431.0,0.1179]
[1757628185508,0.708,4430.7,4430.6,0.7112]
[1757628185806,0.4958,4430.7,4430.6,0.7112]
[1757628186008,0.708,4430.7,4430.3,0.3037]
[1757628186306,0.708,4430.1,4430.0,0.3037]
[1757628186501,0.5433,4431.0,4430.9,0.5075]
[1757628186701,0.5433,4431.0,4429.6,32.512]
[1757628186702,0.76901,4431.0,4429.6,32.512]
[1757628187007,1.34741888,4430.9,4430.8,0.7112]
[1757628187209,0.708,4430.9,4430.0,0.1179]
[1757628187403,0.708,4430.9,4430.1,0.3037]
[1757628187610,0.93372,4430.9,4430.1,0.3037]
[1757628187903,0.2917,4431.3,4430.8,0.4075]
[1757628188205,0.708,4430.9,4430.8,0.4075]
[1757628188406,0.708,4430.9,4430.3,0.229]
[1757628188610,0.2041,4431.3,4431.2,0.4075]
[1757628188804,0.708,4431.3,4430.5,0.1179]
[1757628189013,0.708,4431.3,4430.6,0.3037]
[1757628189513,0.4187,4432.0,4431.3,0.3037]
[1757628189810,0.835,4432.0,4431.9,0.5075]
[1757628190312,0.4958,4431.9,4431.8,0.2038]
[1757628190611,0.4163,4431.9,4431.8,0.7112]
[1757628191301,0.708,4431.9,4431.8,0.7112]
[1757628192110,0.4163,4431.8,4431.7,0.3037]
[1757628192409,0.4163,4431.7,4431.6,0.5075]
[1757628192608,0.708,4431.7,4431.6,0.5075]
[1757628193009,0.708,4431.7,4431.6,0.7112]
[1757628194104,0.708,4431.7,4431.3,0.3037]
[1757628194305,0.2041,4431.7,4431.6,0.4075]
[1757628194507,0.708,4431.7,4431.6,0.7112]
[1757628195218,0.2041,4431.7,4431.6,0.7112]
[1757628195409,0.2917,4432.1,4431.6,0.4075]
[1757628195605,0.2917,4432.1,4432.0,0.8291]
[1757628195606,0.2041,4432.1,4432.0,0.8291]
[1757628195809,0.4958,4432.5,4432.4,0.2038]
[1757628196012,0.708,4432.4,4432.3,0.7112]
[1757628196208,0.4958,4432.7,4432.6,0.4075]
[1757628196516,0.708,4432.7,4432.6,0.7112]
[1757628196904,0.708,4432.7,4432.6,0.2038]
[1757628197101,0.708,4432.7,4432.0,0.1179]
[1757628197102,0.4163,4432.1,4432.0,0.5075]
[1757628197311,0.708,4432.1,4432.0,0.5075]
[1757628197511,0.708,4431.8,4431.7,3.919]
[1757628197717,0.708,4432.4,4432.3,0.4075]
[1757628197909,0.708,4432.4,4432.3,0.7112]
[1757628198716,0.2041,4432.4,4432.3,0.7112]
[1757628199521,0.4163,4432.4,4432.3,0.7112]
[1757628199725,0.708,4432.4,4432.3,0.7112]
[1757628200315,0.708,4432.4,4431.8,0.3037]
[1757628200316,0.2917,4432.3,4431.8,0.3037]
[1757628200525,0.2041,4432.3,4432.2,0.4075]
[1757628200813,0.708,4432.3,4432.2,0.7112]
[1757628201014,0.708,4432.3,4431.7,3.7405]
[1757628201015,0.2917,4432.2,4431.7,3.7405]
[1757628201219,0.2041,4431.8,4431.7,4.148]
[1757628201822,0.2041,4431.8,4431.7,3.919]
[1757628202024,0.2122,4431.7,4431.6,0.2038]
[1757628202331,3.6241,4432.1,4432.0,0.8291]
[1757628202630,0.708,4432.1,4432.0,0.8291]
[1757628203016,0.708,4431.6,4430.9,3.5115]
[1757628203222,0.4163,4431.0,4430.9,0.7112]
[1757628203421,3.9158,4431.3,4431.2,0.7112]
[1757628204319,0.708,4430.7,4430.6,0.2038]
[1757628204733,0.708,4430.7,4430.6,0.5075]
[1757628205423,0.4163,4429.9,4429.8,0.7112]
[1757628205623,0.708,4429.9,4429.8,0.7112]
[1757628205819,0.4163,4429.9,4429.8,0.7112]
[1757628206013,0.2041,4429.9,4429.8,0.7112]
[1757628206529,0.708,4429.9,4429.8,0.7112]
[1757628206731,0.708,4429.9,4429.5,0.23]
[1757628206932,0.708,4429.9,4429.2,0.3037]
[1757628206933,0.708,4429.3,4429.2,0.2038]
[1757628207223,0.708,4429.3,4429.2,0.4075]
[1757628207428,0.708,4429.3,4429.2,0.2038]
[1757628207832,0.708,4429.3,4428.6,0.2946]
[1757628208131,0.6957,4428.7,4428.6,0.4998]
[1757628208429,0.6957,4428.7,4428.6,0.2052]
[1757628209129,0.6957,4428.7,4428.6,0.4998]
[1757628210728,0.6957,4428.7,4428.6,0.7004]
[1757628212227,0.2967,4428.6,4427.9,0.2946]
[1757628212534,0.399,4428.0,4427.9,0.7004]
[1757628214531,0.1982,4428.0,4427.9,0.7004]
[1757628214834,0.1982,4428.5,4428.4,0.7004]
[1757628216528,0.6957,4428.5,4428.4,0.2052]
[1757628216733,0.6957,4428.1,4428.0,0.2946]
[1757628216934,0.2967,4427.7,4427.6,0.23]
[1757628217139,0.6957,4427.7,4427.6,0.4998]
[1757628218929,0.6957,4427.7,4427.2,0.2946]
[1757628219128,3.2078,4428.0,4427.6,0.4998]
[1757628219335,3.2078,4428.0,4427.9,0.7004]
[1757628219336,3.406,4428.0,4427.9,0.7004]
[1757628219732,3.406,4428.0,4427.5,0.1176]
[1757628219733,4.1335,4428.5,4428.4,0.7004]
[1757628219929,3.9035,4428.5,4428.4,0.7004]
[1757628220130,3.406,4428.5,4428.4,0.7004]
[1757628221232,0.1982,4428.5,4428.4,0.7004]
[1757628221437,0.1982,4428.9,4428.8,0.7004]
[1757628221635,0.6957,4428.9,4428.8,0.7004]
[1757628222034,0.399,4428.2,4428.1,0.4352]
[1757628222230,0.6957,4428.2,4428.1,0.7298]
[1757628222537,0.399,4427.7,4427.6,3.6136]
[1757628222743,0.399,4427.7,4427.6,3.9082]
[1757628223744,0.6957,4427.7,4427.6,3.9082]
[1757628224940,0.2967,4428.2,4427.7,0.2946]
[1757628225141,0.6957,4428.2,4428.1,0.4998]
[1757628225446,0.1982,4428.2,4428.1,0.7004]
[1757628226831,3.406,4428.9,4428.8,0.4058]
[1757628227036,3.9035,4428.9,4428.8,0.7004]
[1757628228543,3.406,4428.9,4428.8,0.7004]
[1757628231644,0.399,4428.1,4428.0,0.23]
[1757628231847,0.6957,4428.1,4428.0,0.4352]
[1757628232045,0.6957,4428.1,4428.0,0.7298]
[1757628232547,0.6957,4428.1,4427.6,3.2078]
[1757628232548,0.399,4427.7,4427.6,3.2078]
[1757628232848,0.1982,4427.1,4427.0,0.818]
[1757628236443,0.399,4427.1,4427.0,0.818]
[1757628236638,0.6957,4427.1,4427.0,0.7004]
[1757628236844,0.399,4427.1,4427.0,0.818]
[1757628237144,0.1982,4427.1,4427.0,0.818]
[1757628237742,0.2069,4427.5,4427.4,0.7218]
[1757628238446,0.2069,4427.5,4427.4,0.408]
[1757628238653,0.2069,4428.1,4428.0,0.8406]
[1757628238838,3.2078,4428.2,4428.1,0.3138]
[1757628239044,3.2078,4428.2,4428.1,0.7218]
[1757628239347,3.4147,4428.2,4428.1,0.7218]
[1757628239554,0.3201,4428.5,4428.1,0.7218]
[1757628239555,0.3201,4428.8,4428.2,0.3138]
[1757628239752,3.4378,4428.9,4428.6,0.408]
[1757628239753,1.05341789,4428.7,4428.6,0.408]
[1757628239952,1.37351789,4428.7,4428.6,0.7218]
[1757628240854,1.05341789,4428.7,4428.6,0.7218]
[1757628241050,1.37351789,4428.7,4428.6,0.7218]
[1757628242345,1.05341789,4428.7,4428.6,0.7218]
[1757628243952,1.37351789,4428.7,4428.6,0.7218]
[1757628244147,0.7358,4428.4,4427.9,3.2078]
[1757628244459,0.7358,4427.8,4427.7,0.23]
[1757628244754,0.7358,4427.8,4427.7,0.7556]
[1757628244945,0.7358,4427.8,4427.7,0.9518]
[1757628245852,0.7358,4427.8,4427.7,0.4418]
[1757628246554,0.7358,4427.8,4427.7,0.7556]
[1757628246755,0.7358,4427.8,4427.7,0.9518]
[1757628247357,0.2069,4427.8,4427.7,0.9518]
[1757628247851,0.2069,4428.4,4428.3,0.7218]
[1757628248055,0.84471383,4428.4,4428.3,0.7218]
[1757628248250,0.2069,4428.4,4428.3,0.7218]
[1757628248457,3.2078,4428.9,4428.0,0.1188]
[1757628248458,3.4147,4428.9,4428.8,0.408]
[1757628248661,4.05247964,4428.9,4428.8,0.7218]
[1757628250252,0.84467964,4428.9,4428.8,0.7218]
[1757628250453,3.8759,4429.5,4428.9,0.3138]
[1757628250648,1.37347344,4429.4,4428.8,0.3138]
[1757628250853,0.4157,4428.5,4428.4,0.7218]
[1757628251357,0.7358,4428.5,4428.4,0.7218]
[1757628251650,0.3201,4428.2,4427.5,3.6404]
[1757628251846,0.2069,4427.6,4427.5,4.0484]
[1757628252457,0.7358,4427.6,4427.5,4.0484]
[1757628253845,0.4157,4427.6,4427.5,4.0484]
[1757628254050,0.2069,4427.6,4427.5,4.0484]
[1757628255947,0.7358,4427.6,4427.5,4.0484]
[1757628256148,0.4157,4427.6,4427.3,0.23]
[1757628256354,0.7358,4427.4,4427.3,0.4418]
[1757628256654,0.7358,4427.4,4427.3,0.7556]
[1757628257058,0.7358,4427.4,4427.3,0.4418]
[1757628257355,0.7358,4427.1,4427.0,0.5256]
[1757628257556,0.7358,4427.1,4427.0,0.7218]
[1757628257856,0.7358,4427.1,4427.0,0.8406]
[1757628258756,0.7358,4427.1,4426.8,0.23]
[1757628259056,0.7358,4427.0,4426.9,0.5256]
[1757628259257,0.3201,4426.9,4426.6,0.3138]
[1757628259452,0.3201,4426.6,4426.5,0.2118]
[1757628259659,0.4157,4426.6,4426.5,0.5256]
[1757628259858,0.4157,4426.6,4426.5,0.7218]
[1757628260164,0.4157,4426.6,4426.5,0.8406]
[1757628260761,0.3201,4426.9,4426.5,0.8406]
[1757628260958,0.527,4426.9,4426.8,0.408]
[1757628261154,0.527,4426.9,4426.8,0.7218]
[1757628261359,0.7358,4426.9,4426.8,0.7218]
[1757628267168,0.3201,4426.8,4426.3,0.3138]
[1757628267465,0.7358,4426.4,4426.3,0.7218]
[1757628267663,0.4157,4426.4,4426.3,0.7218]
[1757628267863,3.2078,4427.2,4426.9,0.4099]
[1757628268174,0.7066,4427.1,4427.0,0.8504]
[1757628268373,0.4049,4427.1,4427.0,0.8504]
[1757628268970,0.7066,4427.1,4427.0,0.8504]
[1757628269564,0.4049,4427.1,4427.0,0.8504]
[1757628269761,3.2078,4427.2,4427.1,0.3147]
[1757628269970,3.2078,4427.2,4427.1,0.7246]
[1757628270177,3.4022,4427.2,4427.1,0.7246]
[1757628272573,0.1944,4427.2,4427.1,0.7246]
[1757628275777,3.2078,4427.8,4427.1,0.4099]
[1757628276080,3.6127,4427.8,4427.7,0.2069]
[1757628276279,3.9144,4427.8,4427.7,0.2069]
[1757628276582,3.9144,4427.8,4427.1,0.3147]